bitfinex-derivatives/quotes_BTCF0:USTF0_20250207
["timestamp","ask_amount","ask_price","bid_price","bid_amount"]
[1738936919461,0.17647515,98831.0,98821.0,0.77130225]
[1738936919462,0.17647515,98831.0,98821.0,0.00010225]
[1738936919661,0.17647515,98831.0,98822.0,0.2023327]
[1738936919859,0.17647515,98831.0,98821.0,0.00010225]
[1738936920057,0.3698,98838.0,98837.0,0.202302]
[1738936920267,0.5721014,98838.0,98831.0,0.001]
[1738936920464,0.3698,98838.0,98831.0,0.001]
[1738936920666,0.3698,98838.0,98821.0,0.00110225]
[1738936920667,0.2023327,98822.0,98821.0,0.00110225]
[1738936920868,0.5631327,98822.0,98821.0,0.00110225]
[1738936921257,0.2023327,98822.0,98821.0,0.00010225]
[1738936921570,0.2023503,98814.0,98804.0,0.2023678]
[1738936921757,0.3608,98812.0,98801.0,0.29304336]
[1738936921966,0.3608,98812.0,98809.0,0.2023579]
[1738936922156,0.3608,98812.0,98806.0,0.2023644]
[1738936922360,0.3608,98812.0,98805.0,0.2023673]
[1738936922557,0.2023592,98810.0,98808.0,0.23364162]
[1738936922870,0.3608,98812.0,98808.0,0.43600172]
[1738936923068,0.00015177,98820.0,98808.0,0.59444162]
[1738936923263,0.00015177,98820.0,98818.0,0.2023398]
[1738936924266,0.17647515,98840.0,98819.0,0.3608]
[1738936924473,0.37879195,98830.0,98826.0,0.2023232]
[1738936924670,0.37104092,98839.0,98810.0,0.2023553]
[1738936924976,0.2023592,98810.0,98808.0,0.3608]
[1738936925273,0.2023757,98801.0,98800.0,0.1]
[1738936925468,0.17647515,98810.0,98800.0,0.1]
[1738936925665,0.2023705,98804.0,98800.0,0.1]
[1738936925969,0.00067178,98819.0,98809.0,0.2023582]
[1738936926169,0.2023424,98818.0,98814.0,0.3608]
[1738936926367,0.2023696,98805.0,98803.0,0.3608]
[1738936926569,0.2023725,98803.0,98800.0,0.1]
[1738936926764,0.2023754,98802.0,98800.0,0.1]
[1738936927371,0.2023754,98802.0,98800.0,0.08]
[1738936928272,0.2113754,98802.0,98800.0,0.08]
[1738936929473,0.06168,98801.0,98800.0,0.08]
[1738936930865,0.07068,98801.0,98800.0,0.081]
[1738936931971,0.2730556,98801.0,98800.0,0.081]
[1738936932680,0.07068,98801.0,98800.0,0.081]
[1738936933177,0.2730556,98801.0,98800.0,0.081]
[1738936934076,0.06568,98801.0,98800.0,0.08]
[1738936935172,0.2680502,98801.0,98800.0,0.08]
[1738936935979,0.2730502,98801.0,98800.0,0.081]
[1738936936574,0.06168,98801.0,98800.0,0.08]
[1738936936775,0.06268,98801.0,98800.0,0.08]
[1738936939178,0.202355,98802.0,98800.0,0.08]
[1738936939389,0.001,98801.0,98800.0,0.2823573]
[1738936939878,0.01040315,98819.0,98800.0,0.4408]
[1738936940181,0.2023329,98813.0,98804.0,0.2023487]
[1738936940376,0.2023329,98813.0,98800.0,0.4408]
[1738936940579,0.2023341,98812.0,98806.0,0.2023439]
[1738936940779,0.00015177,98819.0,98806.0,0.2023439]
[1738936941092,0.2023299,98814.0,98813.0,0.3608]
[1738936941581,0.00015177,98819.0,98805.0,0.2023473]
[1738936941877,0.00015177,98819.0,98800.0,0.4408]
[1738936942082,0.2023558,98801.0,98800.0,0.4408]
[1738936942277,0.2023558,98801.0,98800.0,0.08]
[1738936942880,0.2023401,98809.0,98804.0,0.2023491]
[1738936943481,0.2023401,98809.0,98806.0,0.2023455]
[1738936943682,0.2023547,98802.0,98800.0,0.08]
[1738936943889,0.002,98801.0,98800.0,0.08]
[1738936944480,0.2043558,98801.0,98800.0,0.08]
[1738936945291,0.21430441,98801.0,98800.0,0.08]
[1738936945486,0.21230441,98801.0,98800.0,0.08]
[1738936946287,0.21830441,98801.0,98800.0,0.081]
[1738936946986,0.21930441,98801.0,98800.0,0.081]
[1738936947383,0.21230441,98801.0,98800.0,0.08]
[1738936947590,0.21530441,98801.0,98800.0,0.08]
[1738936948489,0.01294861,98801.0,98783.0,0.6252]
[1738936948695,0.2024172,98771.0,98770.0,0.23364162]
[1738936949191,0.17647515,98780.0,98769.0,0.29304336]
[1738936949484,0.0616,98784.0,98781.0,0.2023965]
[1738936949691,0.0616,98784.0,98778.0,0.3608]
[1738936949887,0.26414257,98784.0,98778.0,0.3608]
[1738936950085,0.06175187,98784.0,98778.0,0.3608]
[1738936950281,0.2023979,98781.0,98779.0,0.9764]
[1738936950680,0.07180374,98784.0,98779.0,0.9764]
[1738936950880,0.2023988,98780.0,98779.0,0.9764]
[1738936951089,0.00015187,98784.0,98782.0,0.2023935]
[1738936951288,0.00015187,98784.0,98783.0,0.3608]
[1738936951483,0.202354,98802.0,98799.0,0.2023588]
[1738936951684,0.2023612,98799.0,98797.0,0.3608]
[1738936952486,0.21249834,98805.0,98799.0,0.202358]
[1738936952698,0.006,98802.0,98800.0,0.2023571]
[1738936952888,0.006,98802.0,98801.0,0.3608]
[1738936953391,0.00015187,98808.0,98801.0,0.3608]
[1738936953591,0.2023524,98803.0,98801.0,0.3608]
[1738936954803,0.00015187,98808.0,98785.0,0.3608]
[1738936954995,0.2023629,98798.0,98794.0,0.2023692]
[1738936955187,0.00015187,98808.0,98794.0,0.2023692]
[1738936955495,0.00015187,98808.0,98796.0,0.3608]
[1738936955496,0.2023637,98798.0,98796.0,0.3608]
[1738936956288,0.2043637,98798.0,98796.0,0.3608]
[1738936957384,0.2023637,98798.0,98796.0,0.3608]
[1738936957785,0.2023637,98798.0,98796.0,0.5631644]
[1738936958100,0.2023564,98801.0,98800.0,0.2023571]
[1738936958894,0.00015187,98808.0,98796.0,0.3608]
[1738936959086,0.00015187,98808.0,98807.0,0.2023435]
[1738936959287,0.00015187,98808.0,98807.0,1.1579435]
[1738936960695,0.00115187,98808.0,98807.0,1.1579435]
[1738936961997,0.00115187,98808.0,98807.0,0.9556]
[1738936962303,0.20349327,98808.0,98807.0,0.9556]
[1738936963483,0.20349327,98808.0,98796.0,0.3608]
[1738936963484,0.00115187,98808.0,98796.0,0.3608]
[1738936963690,0.2023639,98797.0,98796.0,0.3608]
[1738936964598,0.00115187,98808.0,98796.0,0.3608]
[1738936964799,0.2023515,98804.0,98803.0,0.2023517]
[1738936964988,0.20349367,98808.0,98807.0,0.2023435]
[1738936965392,0.00015187,98808.0,98807.0,0.2023435]
[1738936965593,0.20349327,98808.0,98807.0,0.2023435]
[1738936965991,0.20249327,98808.0,98807.0,0.2023435]
[1738936966296,0.00115187,98808.0,98807.0,0.2023435]
[1738936966500,0.00115187,98808.0,98789.0,0.00064]
[1738936966799,0.00115187,98808.0,98786.0,0.3608]
[1738936966800,0.2023517,98803.0,98798.0,0.3608]
[1738936967099,0.202358,98802.0,98801.0,0.2023555]
[1738936967703,0.2023457,98806.0,98805.0,0.2023435]
[1738936967894,0.00115187,98808.0,98807.0,0.2023435]
[1738936968408,0.00015187,98808.0,98807.0,0.2023435]
[1738936968700,0.00115187,98808.0,98807.0,0.2023435]
[1738936969098,0.00115187,98808.0,98807.0,0.3608]
[1738936969293,0.2023639,98797.0,98796.0,0.3608]
[1738936971203,0.2023762,98791.0,98790.0,0.5243]
[1738936972194,0.2023762,98791.0,98790.0,0.2656]
[1738936972395,0.0098113,98791.0,98785.0,0.3608]
[1738936972595,0.2023803,98789.0,98785.0,0.3608]
[1738936973994,0.2023803,98789.0,98785.0,0.5631883]
[1738936974396,0.2023803,98789.0,98785.0,0.3608]
[1738936974996,0.2053803,98789.0,98785.0,0.3608]
[1738936975506,0.2023803,98789.0,98788.0,0.00115187]
[1738936976098,0.2033803,98789.0,98788.0,0.00015187]
[1738936976699,0.21332441,98789.0,98788.0,0.00015187]
[1738936977899,0.21232441,98789.0,98788.0,0.00015187]
[1738936978101,0.21332441,98789.0,98788.0,0.00015187]
[1738936978699,0.18055857,98790.0,98788.0,0.00015187]
[1738936978997,0.18055857,98790.0,98789.0,0.3608]
[1738936979312,0.2023398,98809.0,98806.0,0.2023455]
[1738936979608,0.00986383,98811.0,98807.0,0.3608]
[1738936979905,0.06148,98829.0,98807.0,0.8559]
[1738936980112,0.2023165,98821.0,98818.0,0.2023209]
[1738936980403,0.24134686,98824.0,98817.0,0.3608]
[1738936980610,0.24134686,98824.0,98823.0,0.2023107]
[1738936980799,0.01648491,98824.0,98823.0,0.2023107]
[1738936981404,0.00015179,98833.0,98817.0,0.72216]
[1738936981608,0.00015179,98833.0,98832.0,0.5630923]
[1738936982112,0.01004848,98850.0,98845.0,0.2022657]
[1738936982315,0.47377882,98846.0,98845.0,0.5630657]
[1738936982511,0.27151522,98846.0,98845.0,0.5630657]
[1738936983018,0.27151522,98846.0,98845.0,0.3608]
[1738936983207,0.27151522,98846.0,98836.0,0.00015179]
[1738936983407,0.202282,98837.0,98836.0,0.00015179]
[1738936984419,0.00987309,98837.0,98809.0,0.5437]
[1738936984714,0.3608,98838.0,98813.0,0.202331]
[1738936984715,0.2023108,98823.0,98813.0,0.202331]
[1738936984902,0.2023108,98823.0,98812.0,0.3608]
[1738936985212,0.17707815,98822.0,98813.0,0.2642]
[1738936985428,0.202328,98815.0,98813.0,0.2642]
[1738936986120,0.2023394,98809.0,98808.0,0.17815829]
[1738936987107,0.2023394,98809.0,98808.0,0.38049969]
[1738936988014,0.2608,98820.0,98808.0,0.17815829]
[1738936988211,0.2023261,98816.0,98814.0,0.2023283]
[1738936988414,0.53,98821.0,98808.0,0.00015179]
[1738936989017,0.18700742,98822.0,98813.0,0.3608]
[1738936989314,0.2023077,98825.0,98823.0,0.202309]
[1738936989820,0.15111298,98826.0,98821.0,0.3608]
[1738936990117,0.15111298,98826.0,98825.0,0.2023066]
[1738936990612,0.15111298,98826.0,98813.0,0.3608]
[1738936990810,0.15111298,98826.0,98809.0,0.3608]
[1738936990811,0.17707815,98823.0,98809.0,0.3608]
[1738936991017,0.2023253,98816.0,98811.0,0.2023346]
[1738936991313,0.17707815,98823.0,98809.0,0.3608]
[1738936991520,0.2023373,98810.0,98809.0,0.3608]
[1738936992020,0.2023373,98810.0,98808.0,0.00015179]
[1738936992707,0.2023373,98810.0,98809.0,0.001]
[1738936993215,0.009,98823.0,98809.0,0.3618]
[1738936993416,0.009,98823.0,98822.0,0.3608]
[1738936993924,0.009,98823.0,98822.0,0.7964]
[1738936994515,0.2023373,98810.0,98809.0,0.3608]
[1738936994812,0.2063373,98810.0,98809.0,0.3608]
[1738936995413,0.2063373,98810.0,98808.0,0.00015179]
[1738936996421,0.2023373,98810.0,98808.0,0.00015179]
[1738936997311,0.3608,98818.0,98817.0,0.202323]
[1738936997626,0.01006065,98821.0,98808.0,0.00015179]
[1738936997816,0.17707815,98820.0,98808.0,0.00015179]
[1738936998018,0.006,98810.0,98808.0,0.00115179]
[1738936998217,0.3608,98809.0,98801.0,0.32915759]
[1738936998427,0.3608,98809.0,98806.0,0.2023444]
[1738936998815,0.3608,98809.0,98801.0,0.32915759]
[1738936999114,0.3608,98809.0,98803.0,0.2023512]
[1738936999115,0.202346,98806.0,98803.0,0.2023512]
[1738936999316,0.3608,98809.0,98803.0,0.2023512]
[1738936999527,0.3608,98809.0,98801.0,0.2554]
[1738936999831,0.2023525,98803.0,98801.0,0.2554]
[1738937000817,0.3608,98803.0,98795.0,0.00015179]
[1738937001014,0.2023656,98797.0,98795.0,0.20251889]
[1738937001317,0.5631518,98803.0,98801.0,0.2023553]
[1738937001622,0.5631518,98803.0,98801.0,0.2043553]
[1738937002216,0.5631518,98803.0,98795.0,0.00415179]
[1738937002217,0.5631536,98803.0,98795.0,0.00415179]
[1738937002518,0.2023657,98797.0,98795.0,0.20651899]
[1738937002712,0.2023657,98797.0,98795.0,0.00415179]
[1738937003020,0.2023657,98797.0,98795.0,0.00015179]
[1738937004522,0.2023657,98797.0,98795.0,0.20451949]
[1738937004723,0.2023657,98797.0,98795.0,0.00215179]
[1738937005221,0.3608,98801.0,98795.0,0.00415179]
[1738937005417,0.3608,98801.0,98800.0,0.2023578]
[1738937005726,0.3608,98801.0,98795.0,0.00415179]
[1738937005727,0.2023654,98797.0,98795.0,0.00415179]
[1738937007229,0.2023654,98797.0,98795.0,0.00015179]
[1738937007415,0.2023654,98797.0,98795.0,0.00215179]
[1738937007620,0.2023654,98797.0,98795.0,0.22981969]
[1738937008323,0.2023654,98797.0,98795.0,0.22781969]
[1738937008527,0.2023654,98797.0,98795.0,0.23181969]
[1738937008925,0.3608,98801.0,98800.0,0.2023578]
[1738937009318,0.00015179,98806.0,98805.0,0.2023475]
[1738937011922,0.00015179,98806.0,98805.0,0.2033475]
[1738937014334,0.01019959,98814.0,98813.0,0.2023311]
[1738937014525,0.15111298,98818.0,98817.0,0.202323]
[1738937015123,0.2023271,98815.0,98814.0,0.253]
[1738937015331,0.2023311,98814.0,98812.0,0.202332]
[1738937015527,0.2023434,98807.0,98806.0,0.2444]
[1738937015921,0.3608,98810.0,98790.0,0.3608]
[1738937016231,0.2023492,98805.0,98803.0,0.202351]
[1738937016634,0.3608,98810.0,98796.0,0.2023649]
[1738937016818,0.37091323,98810.0,98808.0,0.202341]
[1738937017221,0.3608,98810.0,98808.0,0.202341]
[1738937017834,0.3698,98810.0,98808.0,0.202341]
[1738937018032,0.5721382,98810.0,98808.0,0.202341]
[1738937018339,0.5631382,98810.0,98808.0,0.202341]
[1738937018631,0.3608,98810.0,98808.0,0.205341]
[1738937019330,0.5631377,98810.0,98808.0,0.003]
[1738937020230,0.2023398,98809.0,98806.0,0.2023453]
[1738937020431,0.2023398,98809.0,98808.0,0.003]
[1738937020823,0.2023398,98809.0,98807.0,0.2023424]
[1738937021030,0.00988805,98814.0,98799.0,0.47886075]
[1738937021227,0.15111298,98818.0,98799.0,0.47886075]
[1738937021427,0.15111298,98818.0,98817.0,0.202323]
[1738937021628,0.16099993,98818.0,98807.0,0.2023434]
[1738937021928,0.16099993,98818.0,98808.0,0.003]
[1738937022131,0.16099993,98818.0,98816.0,0.2023244]
[1738937022533,0.16099993,98818.0,98817.0,0.2368]
[1738937022831,0.00988695,98818.0,98817.0,0.2368]
[1738937023031,0.20232,98819.0,98817.0,0.2368]
[1738937023431,0.2023373,98810.0,98809.0,0.5073]
[1738937023632,0.2023373,98810.0,98808.0,0.202341]
[1738937024438,0.3608,98809.0,98808.0,0.202341]
[1738937025137,0.2023414,98808.0,98807.0,0.0253]
[1738937026639,0.2023414,98808.0,98781.0,0.9407962]
[1738937026640,0.2023659,98796.0,98781.0,0.9407962]
[1738937027026,0.2023659,98796.0,98781.0,0.7384]
[1738937027224,0.2023659,98796.0,98785.0,0.2023873]
[1738937028143,0.2023659,98796.0,98781.0,0.7384]
[1738937028144,0.2023659,98796.0,98795.0,0.00415179]
[1738937028437,0.3608,98798.0,98795.0,0.00415179]
[1738937028834,0.37082697,98798.0,98795.0,0.20651829]
[1738937029040,0.01002697,98798.0,98795.0,0.20651829]
[1738937029234,0.2023639,98797.0,98795.0,0.00415179]
[1738937029437,0.04921775,98796.0,98795.0,0.00415179]
[1738937030340,0.04921775,98796.0,98795.0,0.00315179]
[1738937030838,0.04921775,98796.0,98795.0,0.00415179]
[1738937031138,0.25158365,98796.0,98795.0,0.00415179]
[1738937031535,0.54961775,98796.0,98781.0,0.2457]
[1738937031731,0.2023915,98784.0,98781.0,0.2457]
[1738937032032,0.2023915,98784.0,98779.0,0.2024007]
[1738937032741,0.2023943,98783.0,98779.0,0.2024007]
[1738937033636,0.2023943,98783.0,98781.0,0.2023956]
[1738937034034,0.2113943,98783.0,98781.0,0.2023956]
[1738937034938,0.009,98783.0,98781.0,0.2023956]
[1738937036937,0.00015179,98791.0,98789.0,0.2023791]
[1738937037540,0.2023936,98783.0,98782.0,0.2023942]
[1738937037946,0.2023936,98783.0,98782.0,4.445e-05]
[1738937040039,0.2113936,98783.0,98782.0,4.445e-05]
[1738937041738,0.009,98783.0,98782.0,0.20243905]
[1738937044149,0.009,98783.0,98782.0,0.22773905]
[1738937045049,0.009,98783.0,98782.0,0.88853905]
[1738937045246,0.00015179,98791.0,98790.0,0.2023782]
[1738937045448,0.00015179,98791.0,98790.0,0.5631782]
[1738937045846,0.00015179,98791.0,98784.0,0.70052]
[1738937046149,0.00015179,98791.0,98783.0,0.5069]
[1738937046150,0.36095179,98791.0,98783.0,0.5069]
[1738937046449,0.2023905,98784.0,98782.0,0.02534445]
[1738937046844,0.36095179,98791.0,98782.0,0.02534445]
[1738937047037,0.36195179,98791.0,98790.0,0.007]
[1738937047244,0.56432799,98791.0,98790.0,0.007]
[1738937047446,0.92512799,98791.0,98790.0,0.007]
[1738937047644,0.2023926,98783.0,98782.0,0.02534445]
[1738937047857,0.2023926,98783.0,98746.0,0.45847686]
[1738937047858,0.3608,98783.0,98757.0,0.237]
[1738937048049,0.563213,98773.0,98757.0,0.237]
[1738937048442,0.563213,98773.0,98759.0,0.1780065]
[1738937048657,0.3608,98773.0,98759.0,0.1780065]
[1738937048954,0.5632397,98760.0,98759.0,0.1780065]
[1738937049345,0.3608,98760.0,98759.0,0.1780065]
[1738937049647,0.2024221,98769.0,98759.0,0.1780065]
[1738937049855,0.20257396,98769.0,98759.0,0.1780065]
[1738937050039,0.21274556,98769.0,98759.0,0.1780065]
[1738937050239,0.00015186,98769.0,98759.0,0.29606725]
[1738937050442,0.00015186,98769.0,98768.0,0.5632233]
[1738937051147,0.00015186,98769.0,98768.0,0.8632233]
[1738937051354,0.8208664,98796.0,98784.0,0.2023905]
[1738937051355,0.5631664,98796.0,98784.0,0.2023905]
[1738937051550,0.00060001,98796.0,98778.0,0.3608]
[1738937051854,0.00998962,98798.0,98794.0,0.2023693]
[1738937052050,0.15302172,98800.0,98780.0,0.11806075]
[1738937052051,0.21181783,98795.0,98780.0,0.11806075]
[1738937052245,0.21181783,98795.0,98787.0,0.3608]
[1738937052448,0.21181783,98795.0,98794.0,0.20237]
[1738937053951,0.21181783,98795.0,98794.0,0.001]
[1738937054557,0.21281783,98795.0,98794.0,0.003]
[1738937054756,0.21281783,98795.0,98794.0,0.20537]
[1738937055847,0.001,98795.0,98794.0,0.20537]
[1738937056042,0.001,98795.0,98794.0,0.20237]
[1738937056260,0.00015186,98797.0,98796.0,0.2023659]
[1738937056651,0.00015186,98797.0,98796.0,0.5631659]
[1738937056855,0.15132128,98812.0,98796.0,0.3608]
[1738937057160,0.15132128,98812.0,98811.0,0.2023352]
[1738937058656,0.16156884,98812.0,98811.0,0.2023352]
[1738937059652,0.01224756,98812.0,98811.0,0.2023352]
[1738937059963,0.002,98812.0,98811.0,0.2023352]
[1738937060253,0.002,98812.0,98810.0,0.0253]
[1738937060254,0.2023352,98811.0,98810.0,0.0253]
[1738937060454,0.5631352,98811.0,98810.0,0.0253]
[1738937060660,0.8247352,98811.0,98810.0,0.0253]
[1738937060854,0.6224,98811.0,98810.0,0.0253]
[1738937061047,0.002,98812.0,98811.0,0.2023352]
[1738937062757,0.37068851,98820.0,98810.0,0.0253]
[1738937062960,0.57300581,98820.0,98812.0,0.3608]
[1738937063263,0.57300581,98820.0,98815.0,0.2023266]
[1738937063264,0.37068851,98820.0,98815.0,0.2023266]
[1738937063459,0.37068851,98820.0,98812.0,0.3608]
[1738937063664,0.00015186,98821.0,98820.0,0.2023168]
[1738937063865,0.00015186,98821.0,98820.0,0.5631168]
[1738937064568,0.15132128,98826.0,98820.0,0.3608]
[1738937064763,0.15132128,98826.0,98825.0,0.5631065]
[1738937065060,0.18158554,98832.0,98831.0,0.2022943]
[1738937066160,0.19058554,98832.0,98831.0,0.2022943]
[1738937066663,0.19058554,98832.0,98831.0,0.5630943]
[1738937066868,0.009,98832.0,98831.0,0.5630943]
[1738937069367,0.00015179,98841.0,98840.0,0.2022759]
[1738937069659,0.00015179,98841.0,98840.0,0.5630759]
[1738937070251,0.00015179,98841.0,98840.0,0.3608]
[1738937070752,0.2022913,98833.0,98831.0,0.00015179]
[1738937070950,0.3608,98833.0,98831.0,0.00015179]
[1738937071154,0.00915179,98841.0,98831.0,0.00015179]
[1738937071557,0.00915179,98841.0,98837.0,0.2022815]
[1738937071760,0.00915179,98841.0,98838.0,0.2022798]
[1738937071959,0.00915179,98841.0,98839.0,0.2022774]
[1738937072365,0.00015179,98841.0,98839.0,0.2022774]
[1738937072563,0.00915179,98841.0,98839.0,0.2022774]
[1738937073159,0.00815179,98841.0,98839.0,0.2032774]
[1738937073764,0.00815179,98841.0,98839.0,0.2285674]
[1738937075465,0.00815179,98841.0,98839.0,0.5895674]
[1738937075761,0.00815179,98841.0,98840.0,0.7]
[1738937076167,0.00615179,98841.0,98840.0,0.7]
[1738937077273,0.00615179,98841.0,98840.0,1.001]
[1738937077574,9e-08,98841.0,98840.0,1.001]
[1738937077772,0.42688554,98872.0,98871.0,0.2022124]
[1738937077773,0.18158554,98872.0,98871.0,0.2022124]
[1738937077965,0.37151522,98900.0,98871.0,0.2022124]
[1738937077966,0.5005,98899.0,98871.0,0.7216]
[1738937078268,0.5005,98899.0,98898.0,0.3608]
[1738937078469,0.01005462,98899.0,98898.0,0.3608]
[1738937078664,0.1,98900.0,98898.0,0.3608]
[1738937079061,0.11031011,98900.0,98898.0,0.3608]
[1738937079261,0.11031011,98900.0,98898.0,0.5629561]
[1738937079566,0.1,98900.0,98899.0,0.3608]
[1738937079761,0.1,98900.0,98899.0,0.8466]
[1738937079960,0.1,98900.0,98899.0,1.1466]
[1738937080166,0.1,98900.0,98899.0,1.8466]
[1738937080468,0.1,98900.0,98899.0,1.5466]
[1738937082072,0.18158554,98901.0,98900.0,0.2021532]
[1738937082474,0.0001517,98908.0,98907.0,0.2021388]
[1738937082773,0.256,98945.0,98943.0,0.2020651]
[1738937083980,0.3608,98953.0,98942.0,0.2020666]
[1738937084172,0.3608,98953.0,98943.0,0.2020645]
[1738937084373,0.3608,98953.0,98946.0,0.2020591]
[1738937084980,0.3608,98953.0,98936.0,0.3608]
[1738937085176,0.3608,98953.0,98950.0,0.2020497]
[1738937085378,0.3608,98953.0,98944.0,0.2020634]
[1738937085674,0.3608,98953.0,98936.0,0.3608]
[1738937085980,0.3608,98953.0,98946.0,0.001]
[1738937085981,0.009,98953.0,98946.0,0.001]
[1738937086980,0.2021956,98954.0,98945.0,0.2020598]
[1738937087184,0.009,98953.0,98950.0,0.001]
[1738937087572,0.3608,98952.0,98950.0,0.001]
[1738937087772,0.2020798,98936.0,98922.0,0.3608]
[1738937087979,0.2021037,98925.0,98913.0,0.2021261]
[1738937088180,0.3608,98924.0,98908.0,0.2021354]
[1738937088379,0.3608,98924.0,98903.0,0.3608]
[1738937089277,0.3608,98924.0,98914.0,0.0001516]
[1738937090180,0.2021037,98925.0,98914.0,0.0001516]
[1738937090579,0.21201627,98925.0,98914.0,0.0001516]
[1738937090985,0.2221,98924.0,98914.0,0.0001516]
[1738937091283,0.2241,98924.0,98914.0,0.0001516]
[1738937091786,0.2221,98924.0,98914.0,0.0001516]
[1738937092682,0.5829,98924.0,98914.0,0.0001516]
[1738937093088,0.5849,98924.0,98914.0,0.0001516]
[1738937095175,0.5829,98924.0,98914.0,0.0001516]
[1738937095379,0.5849,98924.0,98914.0,0.0001516]
[1738937095785,0.5829,98924.0,98914.0,0.0001516]
[1738937095988,0.5869,98924.0,98914.0,0.0001516]
[1738937096292,0.5869,98924.0,98915.0,0.2021222]
[1738937096484,0.5869,98924.0,98916.0,0.2021202]
[1738937096885,0.5869,98924.0,98921.0,0.20211]
[1738937097588,0.5839,98924.0,98921.0,0.20211]
[1738937097783,0.5839,98924.0,98914.0,0.0001516]
[1738937097983,0.5839,98924.0,98918.0,0.2021162]
[1738937098497,0.5839,98924.0,98914.0,0.0001516]
[1738937101190,0.5839,98924.0,98922.0,0.2021081]
[1738937101492,0.001,98924.0,98922.0,0.2021081]
[1738937102087,0.001,98924.0,98916.0,0.2021192]
[1738937102283,0.001,98924.0,98914.0,0.0001516]
[1738937102485,0.3618,98924.0,98914.0,0.0001516]
[1738937102680,0.3608,98924.0,98914.0,0.0001516]
[1738937102885,0.6608,98924.0,98887.0,0.4366]
[1738937103183,0.2021659,98894.0,98887.0,0.4366]
[1738937103383,0.3608,98900.0,98887.0,0.4366]
[1738937103597,0.2021798,98887.0,98882.0,0.43946546]
[1738937103798,0.2021612,98897.0,98882.0,0.23727686]
[1738937104096,0.2021612,98897.0,98882.0,0.23742854]
[1738937104288,0.2103,98899.0,98891.0,0.202171]
[1738937104492,0.22049859,98899.0,98882.0,0.23742854]
[1738937104785,0.3608,98900.0,98882.0,0.23742854]
[1738937104786,0.00015168,98901.0,98892.0,0.3608]
[1738937104986,0.00015168,98901.0,98900.0,0.5629532]
[1738937105293,0.2128,98918.0,98900.0,0.3608]
[1738937105487,0.5624,98935.0,98911.0,0.3608]
[1738937105687,0.2020944,98929.0,98923.0,0.2021047]
[1738937105988,0.2020924,98930.0,98923.0,0.2021047]
[1738937106196,0.2020966,98928.0,98917.0,0.2021181]
[1738937106397,0.2021014,98926.0,98917.0,0.2021181]
[1738937106689,0.2021014,98926.0,98912.0,0.92282]
[1738937106690,0.202095,98929.0,98919.0,0.2021134]
[1738937106996,0.00015168,98932.0,98927.0,0.2020979]
[1738937107688,0.00015168,98932.0,98922.0,0.3608]
[1738937107889,0.006,98929.0,98928.0,0.2020956]
[1738937108286,0.00015168,98932.0,98928.0,0.2020956]
[1738937108486,0.20523998,98932.0,98928.0,0.02527]
[1738937108991,0.002,98929.0,98928.0,0.02527]
[1738937109500,0.00015168,98932.0,98928.0,0.23787]
[1738937109791,0.00315168,98932.0,98930.0,0.2020913]
[1738937109989,0.00315168,98932.0,98930.0,0.5628913]
[1738937110398,0.00315168,98932.0,98930.0,0.3608]
[1738937110790,0.00315168,98932.0,98930.0,0.5628916]
[1738937111188,0.00015168,98932.0,98930.0,0.5628916]
[1738937111903,0.00300008,98932.0,98930.0,0.5628916]
[1738937112199,8e-08,98932.0,98930.0,0.5628916]
[1738937112587,8e-08,98932.0,98931.0,0.7]
[1738937113103,0.1497478,98967.0,98962.0,0.2020266]
[1738937113287,0.1497478,98967.0,98962.0,0.5628266]
[1738937113492,0.1497478,98967.0,98966.0,0.2020184]
[1738937114098,0.1497478,98967.0,98966.0,0.9020184]
[1738937114495,0.0001516,98972.0,98970.0,0.2020092]
[1738937115997,0.0081516,98972.0,98970.0,0.2030092]
[1738937117397,0.0081516,98972.0,98970.0,0.001]
[1738937117993,0.2101584,98972.0,98970.0,0.001]
[1738937118493,6.689e-05,98971.0,98970.0,0.001]
[1738937118894,0.20306689,98971.0,98970.0,0.001]
[1738937119194,6.689e-05,98971.0,98970.0,0.001]
[1738937119598,0.2020129,98969.0,98960.0,0.37894821]
[1738937119796,0.2020166,98967.0,98960.0,0.37894821]
[1738937120399,0.00806689,98971.0,98957.0,0.3608]
[1738937121198,0.2020337,98959.0,98957.0,0.3608]
[1738937122305,0.2020189,98966.0,98957.0,0.5638361]
[1738937122505,0.19616689,98971.0,98957.0,0.3618]
[1738937122707,0.2020111,98970.0,98957.0,0.3608]
[1738937122907,0.003,98959.0,98957.0,0.3608]
[1738937123108,0.003,98959.0,98958.0,0.2020348]
[1738937125009,0.006,98966.0,98963.0,0.2020233]
[1738937125305,0.006,98966.0,98957.0,0.2030356]
[1738937125495,6.689e-05,98971.0,98962.0,0.2020262]
[1738937125701,0.3608,98969.0,98958.0,0.004]
[1738937125896,0.3608,98969.0,98964.0,0.2020224]
[1738937126101,6.689e-05,98971.0,98963.0,0.2020235]
[1738937126302,6.689e-05,98971.0,98963.0,0.002]
[1738937126503,0.2020188,98966.0,98963.0,0.002]
[1738937127013,0.202021,98965.0,98959.0,0.2020327]
[1738937127315,0.3608,98968.0,98957.0,0.3608]
[1738937127512,0.2020392,98956.0,98953.0,0.0001516]
[1738937127812,0.2020395,98956.0,98953.0,0.0001516]
[1738937128002,0.3608,98968.0,98953.0,0.0001516]
[1738937128201,0.2020337,98959.0,98953.0,0.0001516]
[1738937128410,0.2020174,98967.0,98953.0,0.0001516]
[1738937128612,0.2020363,98958.0,98953.0,0.0001516]
[1738937129311,0.2020363,98958.0,98953.0,0.0011516]
[1738937129911,0.1998,98966.0,98953.0,0.0011516]
[1738937129912,0.2020229,98964.0,98953.0,0.2061951]
[1738937130903,0.202025,98963.0,98953.0,0.2061951]
[1738937131317,6.689e-05,98971.0,98962.0,0.3608]
[1738937131512,6.689e-05,98971.0,98963.0,0.2020238]
[1738937131710,6.689e-05,98971.0,98964.0,0.202022]
[1738937132109,6.689e-05,98971.0,98962.0,0.3608]
[1738937132312,6.689e-05,98971.0,98968.0,0.2020137]
[1738937132616,6.689e-05,98971.0,98969.0,0.2020118]
[1738937133407,0.20207549,98971.0,98963.0,0.2020243]
[1738937133608,6.689e-05,98971.0,98970.0,0.3608]
[1738937134214,6.689e-05,98971.0,98970.0,0.7627]
[1738937136517,6.689e-05,98971.0,98970.0,0.77281988]
[1738937138213,6.689e-05,98971.0,98970.0,0.83341988]
[1738937138620,6.689e-05,98971.0,98970.0,1.53341988]
[1738937139724,6.689e-05,98971.0,98970.0,0.83341988]